[Event "Titled Tuesday Blitz August 15 Early 2023"]
[White "Lacasa Diaz, Jose Antonio"]
[Black "Putri, Regita Desyari"]
[WhiteFideId "2203375"]
[BlackFideId "7109083"]
[WhiteElo "2378"]
[BlackElo "2201"]
[Result "1-0"]
[Round "3"]
[TimeControl "180+1"]
[Date "2023.08.15"]
[WhiteClock "0:00:18"]
[BlackClock "0:00:08"]
[Board "219"]

1. e4 {[%clk 0:03:00]}  e5 {[%clk 0:02:55]} 2. Nf3 {[%clk 0:03:00]}  Nc6 {[%clk 0:02:55]} 3. Bb5 {[%clk 0:03:00]}  a6 {[%clk 0:02:56]} 4. Bxc6 {[%clk 0:03:00]}  dxc6 {[%clk 0:02:56]} 5. O-O {[%clk 0:03:00]}  Bg4 {[%clk 0:02:56]} 6. h3 {[%clk 0:03:01]}  h5 {[%clk 0:02:56]} 7. d3 {[%clk 0:03:00]}  Bxf3 {[%clk 0:02:50]} 8. Qxf3 {[%clk 0:02:59]}  Qd7 {[%clk 0:02:51]} 9. Be3 {[%clk 0:02:58]}  O-O-O {[%clk 0:02:49]} 10. Nd2 {[%clk 0:02:58]}  f6 {[%clk 0:02:48]} 11. Nc4 {[%clk 0:02:57]}  Kb8 {[%clk 0:02:45]} 12. a3 {[%clk 0:02:56]}  g5 {[%clk 0:02:40]} 13. Qe2 {[%clk 0:02:56]}  g4 {[%clk 0:02:23]} 14. h4 {[%clk 0:02:56]}  Nh6 {[%clk 0:02:21]} 15. g3 {[%clk 0:02:54]}  Bg7 {[%clk 0:02:19]} 16. b4 {[%clk 0:02:49]}  f5 {[%clk 0:02:08]} 17. Bg5 {[%clk 0:02:42]}  Rde8 {[%clk 0:01:35]} 18. Bxh6 {[%clk 0:02:36]}  Rxh6 {[%clk 0:01:31]} 19. exf5 {[%clk 0:02:36]}  Qxf5 {[%clk 0:01:31]} 20. Qe4 {[%clk 0:02:33]}  Qd7 {[%clk 0:01:21]} 21. Rfe1 {[%clk 0:02:18]}  Qd5 {[%clk 0:01:12]} 22. Rad1 {[%clk 0:02:02]}  Rhe6 {[%clk 0:00:59]} 23. Ne3 {[%clk 0:01:55]}  Qd7 {[%clk 0:00:36]} 24. Nf5 {[%clk 0:01:48]}  Bf8 {[%clk 0:00:36]} 25. Re2 {[%clk 0:01:32]}  Rf6 {[%clk 0:00:36]} 26. Ne3 {[%clk 0:01:30]}  Rf3 {[%clk 0:00:19]} 27. Nc4 {[%clk 0:01:22]}  Bd6 {[%clk 0:00:19]} 28. Re3 {[%clk 0:01:15]}  Ref8 {[%clk 0:00:16]} 29. Rxf3 {[%clk 0:01:14]}  gxf3 {[%clk 0:00:16]} 30. Kh2 {[%clk 0:00:57]}  Qe6 {[%clk 0:00:15]} 31. Nxd6 {[%clk 0:00:52]}  cxd6 {[%clk 0:00:14]} 32. d4 {[%clk 0:00:49]}  Qc4 {[%clk 0:00:07]} 33. Qd3 {[%clk 0:00:42]}  Qxd3 {[%clk 0:00:04]} 34. Rxd3 {[%clk 0:00:43]}  e4 {[%clk 0:00:05]} 35. Re3 {[%clk 0:00:43]}  d5 {[%clk 0:00:06]} 36. Kh3 {[%clk 0:00:28]}  Rg8 {[%clk 0:00:07]} 37. Re1 {[%clk 0:00:27]}  Kc7 {[%clk 0:00:07]} 38. Rg1 {[%clk 0:00:26]}  Rg4 {[%clk 0:00:07]} 39. Re1 {[%clk 0:00:26]}  Kd6 {[%clk 0:00:08]} 40. c3 {[%clk 0:00:25]}  b6 {[%clk 0:00:09]} 41. Re3 {[%clk 0:00:22]}  Rg6 {[%clk 0:00:09]} 42. Re1 {[%clk 0:00:21]}  Rg4 {[%clk 0:00:09]} 43. Re3 {[%clk 0:00:20]}  c5 {[%clk 0:00:10]} 44. Re1 {[%clk 0:00:17]}  c4 {[%clk 0:00:09]} 45. Re3 {[%clk 0:00:17]}  Kc6 {[%clk 0:00:10]} 46. Re1 {[%clk 0:00:17]}  Kb5 {[%clk 0:00:11]} 47. a4+ {[%clk 0:00:14]}  Kxa4 {[%clk 0:00:11]} 48. Ra1+ {[%clk 0:00:14]}  Kb5 {[%clk 0:00:12]} 49. Ra2 {[%clk 0:00:14]}  a5 {[%clk 0:00:12]} 50. bxa5 {[%clk 0:00:14]}  bxa5 {[%clk 0:00:13]} 51. Rb2+ {[%clk 0:00:14]}  Ka4 {[%clk 0:00:09]} 52. Rb6 {[%clk 0:00:14]}  Rg7 {[%clk 0:00:04]} 53. Rd6 {[%clk 0:00:14]}  Kb3 {[%clk 0:00:04]} 54. Rxd5 {[%clk 0:00:14]}  Kxc3 {[%clk 0:00:05]} 55. Rxh5 {[%clk 0:00:14]}  Kxd4 {[%clk 0:00:05]} 56. Rxa5 {[%clk 0:00:14]}  Kd3 {[%clk 0:00:04]} 57. Ra3+ {[%clk 0:00:12]}  c3 {[%clk 0:00:05]} 58. h5 {[%clk 0:00:12]}  Kd2 {[%clk 0:00:04]} 59. g4 {[%clk 0:00:12]}  c2 {[%clk 0:00:04]} 60. Ra2 {[%clk 0:00:12]}  Kd1 {[%clk 0:00:05]} 61. Rxc2 {[%clk 0:00:13]}  Kxc2 {[%clk 0:00:05]} 62. h6 {[%clk 0:00:13]}  Rh7 {[%clk 0:00:05]} 63. g5 {[%clk 0:00:14]}  Kd2 {[%clk 0:00:06]} 64. Kg4 {[%clk 0:00:14]}  Ke2 {[%clk 0:00:07]} 65. Kh5 {[%clk 0:00:14]}  Kxf2 {[%clk 0:00:07]} 66. g6 {[%clk 0:00:15]}  Rh8 {[%clk 0:00:08]} 67. g7 {[%clk 0:00:16]}  Rb8 {[%clk 0:00:09]} 68. h7 {[%clk 0:00:16]}  Ke2 {[%clk 0:00:09]} 69. g8=Q {[%clk 0:00:16]}  f2 {[%clk 0:00:10]} 70. Qxb8 {[%clk 0:00:16]}  f1=Q {[%clk 0:00:11]} 71. Qb5+ {[%clk 0:00:16]}  Ke1 {[%clk 0:00:11]} 72. Qxf1+ {[%clk 0:00:17]}  Kxf1 {[%clk 0:00:08]} 73. h8=Q {[%clk 0:00:18]} 1-0


[Site "https://www.chess.com"]

[Event "Titled Tuesday Blitz August 15 Early 2023"]
[White "Tqebuchava, Zurab"]
[Black "Rietze, Clemens, Dr."]
[WhiteFideId "13601113"]
[BlackFideId "24620351"]
[WhiteElo "2200"]
[BlackElo "2374"]
[Result "0-1"]
[Round "3"]
[TimeControl "180+1"]
[Date "2023.08.15"]
[WhiteClock "0:00:00"]
[BlackClock "0:00:21"]
[Board "220"]

1. e4 {[%clk 0:03:00]}  c5 {[%clk 0:03:00]} 2. Nf3 {[%clk 0:03:00]}  Nc6 {[%clk 0:03:00]} 3. Bb5 {[%clk 0:03:00]}  e6 {[%clk 0:03:00]} 4. Bxc6 {[%clk 0:02:56]}  bxc6 {[%clk 0:03:01]} 5. e5 {[%clk 0:02:47]}  f6 {[%clk 0:03:00]} 6. exf6 {[%clk 0:02:46]}  Nxf6 {[%clk 0:03:00]} 7. O-O {[%clk 0:02:46]}  Be7 {[%clk 0:02:48]} 8. b3 {[%clk 0:02:44]}  O-O {[%clk 0:02:48]} 9. Bb2 {[%clk 0:02:44]}  d6 {[%clk 0:02:48]} 10. d4 {[%clk 0:02:42]}  cxd4 {[%clk 0:02:48]} 11. Nxd4 {[%clk 0:02:41]}  Bd7 {[%clk 0:02:48]} 12. c4 {[%clk 0:02:36]}  e5 {[%clk 0:02:48]} 13. Nc2 {[%clk 0:02:31]}  Bg4 {[%clk 0:02:46]} 14. Qe1 {[%clk 0:02:20]}  Qb6 {[%clk 0:02:41]} 15. Ne3 {[%clk 0:02:17]}  Be6 {[%clk 0:02:29]} 16. Nc3 {[%clk 0:02:16]}  Rae8 {[%clk 0:02:28]} 17. Rd1 {[%clk 0:02:11]}  Kh8 {[%clk 0:02:23]} 18. Ba3 {[%clk 0:02:04]}  Rd8 {[%clk 0:02:15]} 19. c5 {[%clk 0:01:57]}  dxc5 {[%clk 0:02:08]} 20. Na4 {[%clk 0:01:58]}  Qb5 {[%clk 0:02:04]} 21. Qc3 {[%clk 0:01:53]}  Nd5 {[%clk 0:01:42]} 22. Qxe5 {[%clk 0:01:48]}  Nf4 {[%clk 0:01:29]} 23. Rxd8 {[%clk 0:01:32]}  Bxd8 {[%clk 0:01:29]} 24. Qxc5 {[%clk 0:01:24]}  Rf7 {[%clk 0:01:06]} 25. Qxb5 {[%clk 0:01:19]}  cxb5 {[%clk 0:01:06]} 26. Nc5 {[%clk 0:01:19]}  Bc8 {[%clk 0:01:05]} 27. Rd1 {[%clk 0:01:10]}  Bb6 {[%clk 0:01:00]} 28. Nd5 {[%clk 0:00:50]}  Nxd5 {[%clk 0:00:44]} 29. Rxd5 {[%clk 0:00:50]}  h6 {[%clk 0:00:45]} 30. h3 {[%clk 0:00:48]}  Kh7 {[%clk 0:00:45]} 31. Nd3 {[%clk 0:00:46]}  a6 {[%clk 0:00:39]} 32. Bc5 {[%clk 0:00:46]}  Bc7 {[%clk 0:00:36]} 33. Bd6 {[%clk 0:00:45]}  Bb6 {[%clk 0:00:36]} 34. Bg3 {[%clk 0:00:44]}  Bf5 {[%clk 0:00:29]} 35. Ne5 {[%clk 0:00:42]}  Rc7 {[%clk 0:00:27]} 36. Rd6 {[%clk 0:00:38]}  Rc1+ {[%clk 0:00:27]} 37. Kh2 {[%clk 0:00:37]}  Bc7 {[%clk 0:00:26]} 38. Rc6 {[%clk 0:00:36]}  Rxc6 {[%clk 0:00:22]} 39. Nxc6 {[%clk 0:00:35]}  Bb6 {[%clk 0:00:23]} 40. Bd6 {[%clk 0:00:31]}  Bb1 {[%clk 0:00:22]} 41. Nb4 {[%clk 0:00:28]}  a5 {[%clk 0:00:21]} 42. Nd5 {[%clk 0:00:28]}  Bd4 {[%clk 0:00:22]} 43. a4 {[%clk 0:00:22]}  bxa4 {[%clk 0:00:19]} 44. bxa4 {[%clk 0:00:23]}  Bxf2 {[%clk 0:00:20]} 45. Bc7 {[%clk 0:00:23]}  Be1 {[%clk 0:00:20]} 46. Ne3 {[%clk 0:00:21]}  Bd3 {[%clk 0:00:19]} 47. Nd1 {[%clk 0:00:18]}  Bc2 {[%clk 0:00:18]} 48. Nb2 {[%clk 0:00:17]}  Bc3 {[%clk 0:00:17]} 49. Nc4 {[%clk 0:00:16]}  Bxa4 {[%clk 0:00:18]} 50. Bxa5 {[%clk 0:00:14]}  Bd4 {[%clk 0:00:18]} 51. Bb4 {[%clk 0:00:13]}  Bb5 {[%clk 0:00:18]} 52. Nd2 {[%clk 0:00:13]}  Be5+ {[%clk 0:00:19]} 53. Kg1 {[%clk 0:00:12]}  Bc6 {[%clk 0:00:19]} 54. Kf2 {[%clk 0:00:12]}  Bd4+ {[%clk 0:00:19]} 55. Kf1 {[%clk 0:00:11]}  h5 {[%clk 0:00:20]} 56. Nf3 {[%clk 0:00:10]}  Bb5+ {[%clk 0:00:20]} 57. Ke1 {[%clk 0:00:09]}  Bf6 {[%clk 0:00:20]} 58. Kf2 {[%clk 0:00:08]}  g5 {[%clk 0:00:20]} 59. Bd2 {[%clk 0:00:07]}  Kg6 {[%clk 0:00:20]} 60. Ne1 {[%clk 0:00:05]}  Bd4+ {[%clk 0:00:20]} 61. Kg3 {[%clk 0:00:04]}  Be5+ {[%clk 0:00:20]} 62. Kf2 {[%clk 0:00:04]}  Bc6 {[%clk 0:00:20]} 63. Nf3 {[%clk 0:00:03]}  Bf6 {[%clk 0:00:21]} 64. Be3 {[%clk 0:00:03]}  Be4 {[%clk 0:00:20]} 65. Bd2 {[%clk 0:00:03]}  g4 {[%clk 0:00:20]} 66. hxg4 {[%clk 0:00:02]}  hxg4 {[%clk 0:00:21]} 67. Ne1 {[%clk 0:00:02]}  Bd4+ {[%clk 0:00:21]} 68. Be3 {[%clk 0:00:00]}  Bc3 {[%clk 0:00:21]} 0-1


[Site "https://www.chess.com"]

[Event "Titled Tuesday Blitz August 15 Early 2023"]
[White "Feliz Dotel, Dewar Bienvenido"]
[Black "Gu, Xiaobing"]
[WhiteFideId "6402801"]
[BlackFideId "8602611"]
[WhiteElo "2198"]
[BlackElo "2374"]
[Result "0-1"]
[Round "3"]
[TimeControl "180+1"]
[Date "2023.08.15"]
[WhiteClock "0:00:00"]
[BlackClock "0:00:05"]
[Board "221"]

1. d4 {[%clk 0:03:00]}  Nf6 {[%clk 0:02:52]} 2. e3 {[%clk 0:02:59]}  d5 {[%clk 0:02:48]} 3. Nf3 {[%clk 0:02:58]}  Bg4 {[%clk 0:02:40]} 4. h3 {[%clk 0:02:58]}  Bh5 {[%clk 0:02:36]} 5. g4 {[%clk 0:02:58]}  Bg6 {[%clk 0:02:35]} 6. Ne5 {[%clk 0:02:58]}  Nfd7 {[%clk 0:02:12]} 7. h4 {[%clk 0:02:51]}  f6 {[%clk 0:02:12]} 8. h5 {[%clk 0:02:37]}  Nxe5 {[%clk 0:01:55]} 9. dxe5 {[%clk 0:02:33]}  Bf7 {[%clk 0:01:55]} 10. exf6 {[%clk 0:02:22]}  exf6 {[%clk 0:01:54]} 11. Nc3 {[%clk 0:02:17]}  Bb4 {[%clk 0:01:49]} 12. Bd2 {[%clk 0:02:17]}  Nc6 {[%clk 0:01:45]} 13. Bb5 {[%clk 0:02:15]}  Qd7 {[%clk 0:01:38]} 14. a3 {[%clk 0:02:14]}  Bd6 {[%clk 0:01:30]} 15. Qf3 {[%clk 0:02:03]}  a6 {[%clk 0:00:57]} 16. Bxc6 {[%clk 0:01:54]}  Qxc6 {[%clk 0:00:55]} 17. h6 {[%clk 0:01:49]}  O-O {[%clk 0:00:44]} 18. hxg7 {[%clk 0:01:45]}  Kxg7 {[%clk 0:00:44]} 19. O-O-O {[%clk 0:01:19]}  b5 {[%clk 0:00:39]} 20. Rdg1 {[%clk 0:01:18]}  a5 {[%clk 0:00:33]} 21. g5 {[%clk 0:01:17]}  Bg6 {[%clk 0:00:30]} 22. gxf6+ {[%clk 0:01:09]}  Rxf6 {[%clk 0:00:29]} 23. Qh5 {[%clk 0:00:56]}  Kf7 {[%clk 0:00:20]} 24. Rxg6 {[%clk 0:00:48]}  hxg6 {[%clk 0:00:19]} 25. Qh7+ {[%clk 0:00:46]}  Ke6 {[%clk 0:00:19]} 26. Qh3+ {[%clk 0:00:41]}  Ke7 {[%clk 0:00:17]} 27. Qg4 {[%clk 0:00:39]}  b4 {[%clk 0:00:17]} 28. Rh7+ {[%clk 0:00:36]}  Rf7 {[%clk 0:00:16]} 29. Qg5+ {[%clk 0:00:36]}  Ke8 {[%clk 0:00:15]} 30. Rxf7 {[%clk 0:00:34]}  Kxf7 {[%clk 0:00:14]} 31. Nxd5 {[%clk 0:00:33]}  Bf8 {[%clk 0:00:09]} 32. Qf4+ {[%clk 0:00:17]}  Kg8 {[%clk 0:00:09]} 33. Nf6+ {[%clk 0:00:14]}  Kg7 {[%clk 0:00:08]} 34. Ne4 {[%clk 0:00:08]}  Rd8 {[%clk 0:00:07]} 35. Qe5+ {[%clk 0:00:05]}  Kg8 {[%clk 0:00:05]} 36. Nf6+ {[%clk 0:00:00]}  Kf7 {[%clk 0:00:05]} 0-1


[Site "https://www.chess.com"]

[Event "Titled Tuesday Blitz August 15 Early 2023"]
[White "Topalov, Aleksandar"]
[Black "Cueto, Jonny"]
[WhiteFideId "925659"]
[BlackFideId "3300145"]
[WhiteElo "2373"]
[BlackElo "2164"]
[Result "0-1"]
[Round "3"]
[TimeControl "180+1"]
[Date "2023.08.15"]
[WhiteClock "0:00:03"]
[BlackClock "0:00:04"]
[Board "222"]

1. b3 {[%clk 0:03:00]}  e6 {[%clk 0:02:58]} 2. Bb2 {[%clk 0:02:58]}  Nf6 {[%clk 0:02:57]} 3. Nf3 {[%clk 0:02:58]}  b6 {[%clk 0:02:58]} 4. g3 {[%clk 0:02:56]}  Bb7 {[%clk 0:02:58]} 5. Bg2 {[%clk 0:02:56]}  d6 {[%clk 0:02:59]} 6. O-O {[%clk 0:02:56]}  Nbd7 {[%clk 0:02:59]} 7. d3 {[%clk 0:02:56]}  Be7 {[%clk 0:03:00]} 8. Nbd2 {[%clk 0:02:56]}  O-O {[%clk 0:02:58]} 9. e4 {[%clk 0:02:57]}  e5 {[%clk 0:02:55]} 10. Nh4 {[%clk 0:02:55]}  a5 {[%clk 0:02:55]} 11. Nf5 {[%clk 0:02:54]}  g6 {[%clk 0:02:51]} 12. Nxe7+ {[%clk 0:02:53]}  Qxe7 {[%clk 0:02:52]} 13. a3 {[%clk 0:02:53]}  d5 {[%clk 0:02:44]} 14. exd5 {[%clk 0:02:51]}  Bxd5 {[%clk 0:02:43]} 15. Re1 {[%clk 0:02:48]}  Bxg2 {[%clk 0:02:43]} 16. Kxg2 {[%clk 0:02:48]}  Qc5 {[%clk 0:02:43]} 17. Nc4 {[%clk 0:02:43]}  Rfe8 {[%clk 0:02:28]} 18. Kg1 {[%clk 0:02:29]}  b5 {[%clk 0:02:17]} 19. Nd2 {[%clk 0:02:25]}  Nb6 {[%clk 0:02:14]} 20. Rc1 {[%clk 0:02:21]}  Rad8 {[%clk 0:02:04]} 21. Qf3 {[%clk 0:02:17]}  Nh5 {[%clk 0:01:34]} 22. Ne4 {[%clk 0:02:12]}  Qc6 {[%clk 0:01:29]} 23. Qe2 {[%clk 0:01:42]}  Ng7 {[%clk 0:01:24]} 24. Qe3 {[%clk 0:01:37]}  Nf5 {[%clk 0:01:21]} 25. Qg5 {[%clk 0:01:33]}  h6 {[%clk 0:01:02]} 26. Nf6+ {[%clk 0:00:59]}  Kh8 {[%clk 0:01:00]} 27. Nxe8 {[%clk 0:00:59]}  hxg5 {[%clk 0:00:53]} 28. Bxe5+ {[%clk 0:00:59]}  Kg8 {[%clk 0:00:37]} 29. Nf6+ {[%clk 0:00:59]}  Kf8 {[%clk 0:00:33]} 30. Nh7+ {[%clk 0:00:58]}  Kg8 {[%clk 0:00:34]} 31. Nf6+ {[%clk 0:00:57]}  Kf8 {[%clk 0:00:24]} 32. Nh7+ {[%clk 0:00:55]}  Ke7 {[%clk 0:00:15]} 33. Nf6 {[%clk 0:00:23]}  Nd5 {[%clk 0:00:09]} 34. Bxc7+ {[%clk 0:00:20]}  Kxf6 {[%clk 0:00:08]} 35. Bxd8+ {[%clk 0:00:20]}  Kg7 {[%clk 0:00:08]} 36. c4 {[%clk 0:00:20]}  Nf6 {[%clk 0:00:06]} 37. Bxf6+ {[%clk 0:00:12]}  Kxf6 {[%clk 0:00:06]} 38. Re4 {[%clk 0:00:12]}  b4 {[%clk 0:00:03]} 39. axb4 {[%clk 0:00:12]}  axb4 {[%clk 0:00:04]} 40. Rce1 {[%clk 0:00:11]}  Qa6 {[%clk 0:00:04]} 41. d4 {[%clk 0:00:11]}  Qa2 {[%clk 0:00:04]} 42. d5 {[%clk 0:00:10]}  Qxb3 {[%clk 0:00:04]} 43. g4 {[%clk 0:00:07]}  Nh4 {[%clk 0:00:03]} 44. d6 {[%clk 0:00:07]}  Nf3+ {[%clk 0:00:03]} 45. Kf1 {[%clk 0:00:07]}  Nxe1 {[%clk 0:00:03]} 46. Rxe1 {[%clk 0:00:08]}  Qd3+ {[%clk 0:00:04]} 47. Kg1 {[%clk 0:00:08]}  Qxd6 {[%clk 0:00:04]} 48. Rc1 {[%clk 0:00:08]}  b3 {[%clk 0:00:05]} 49. Rb1 {[%clk 0:00:06]}  Qd3 {[%clk 0:00:04]} 50. Rc1 {[%clk 0:00:03]}  b2 {[%clk 0:00:04]} 0-1


[Site "https://www.chess.com"]

[Event "Titled Tuesday Blitz August 15 Early 2023"]
[White "campochess"]
[Black "Amanov, Zhanibek"]
[BlackFideId "13700189"]
[WhiteElo "2156"]
[BlackElo "2360"]
[Result "1-0"]
[Round "3"]
[TimeControl "180+1"]
[Date "2023.08.15"]
[WhiteClock "0:01:24"]
[BlackClock "0:00:00"]
[Board "224"]

1. d4 {[%clk 0:02:59]}  d5 {[%clk 0:02:58]} 2. Bg5 {[%clk 0:02:57]}  f6 {[%clk 0:02:38]} 3. Bd2 {[%clk 0:02:54]}  c5 {[%clk 0:02:35]} 4. e3 {[%clk 0:02:53]}  Nc6 {[%clk 0:02:33]} 5. c4 {[%clk 0:02:43]}  e5 {[%clk 0:02:01]} 6. cxd5 {[%clk 0:02:40]}  Qxd5 {[%clk 0:01:57]} 7. Nc3 {[%clk 0:02:40]}  Qd8 {[%clk 0:01:49]} 8. d5 {[%clk 0:02:40]}  Nb4 {[%clk 0:01:25]} 9. e4 {[%clk 0:02:39]}  f5 {[%clk 0:01:17]} 10. a3 {[%clk 0:02:38]}  Na6 {[%clk 0:01:14]} 11. Bb5+ {[%clk 0:02:34]}  Bd7 {[%clk 0:01:14]} 12. exf5 {[%clk 0:02:28]}  Nc7 {[%clk 0:01:10]} 13. Qh5+ {[%clk 0:02:26]}  Ke7 {[%clk 0:01:01]} 14. d6+ {[%clk 0:02:20]}  Kxd6 {[%clk 0:00:55]} 15. Qf7 {[%clk 0:02:20]}  Nxb5 {[%clk 0:00:36]} 16. Nxb5+ {[%clk 0:02:14]}  Bxb5 {[%clk 0:00:36]} 17. O-O-O {[%clk 0:02:12]}  Qe7 {[%clk 0:00:30]} 18. Bg5+ {[%clk 0:02:10]}  Kc7 {[%clk 0:00:28]} 19. Bxe7 {[%clk 0:02:10]}  Nxe7 {[%clk 0:00:28]} 20. Nf3 {[%clk 0:02:06]}  e4 {[%clk 0:00:27]} 21. Ne5 {[%clk 0:02:05]}  a5 {[%clk 0:00:21]} 22. f6 {[%clk 0:02:05]}  gxf6 {[%clk 0:00:20]} 23. Qxf6 {[%clk 0:02:04]}  Rg8 {[%clk 0:00:21]} 24. Nf7 {[%clk 0:01:59]}  Nc6 {[%clk 0:00:19]} 25. Qf4+ {[%clk 0:01:57]}  Kb6 {[%clk 0:00:15]} 26. Rd7 {[%clk 0:01:53]}  Rc8 {[%clk 0:00:11]} 27. Rhd1 {[%clk 0:01:51]}  Nd4 {[%clk 0:00:10]} 28. R7xd4 {[%clk 0:01:50]}  cxd4+ {[%clk 0:00:08]} 29. Kb1 {[%clk 0:01:48]}  Bd3+ {[%clk 0:00:08]} 30. Ka1 {[%clk 0:01:47]}  Bc5 {[%clk 0:00:06]} 31. Qf6+ {[%clk 0:01:44]}  Rc6 {[%clk 0:00:06]} 32. Qf5 {[%clk 0:01:39]}  Rxg2 {[%clk 0:00:06]} 33. f3 {[%clk 0:01:38]}  e3 {[%clk 0:00:03]} 34. Qxd3 {[%clk 0:01:36]}  e2 {[%clk 0:00:01]} 35. Re1 {[%clk 0:01:36]}  Re6 {[%clk 0:00:02]} 36. Ng5 {[%clk 0:01:35]}  Rxg5 {[%clk 0:00:01]} 37. Rxe2 {[%clk 0:01:33]}  Rg1+ {[%clk 0:00:02]} 38. Ka2 {[%clk 0:01:32]}  Rxe2 {[%clk 0:00:02]} 39. Qxe2 {[%clk 0:01:32]}  Rg6 {[%clk 0:00:03]} 40. f4 {[%clk 0:01:32]}  Rd6 {[%clk 0:00:04]} 41. Qd3 {[%clk 0:01:30]}  Re6 {[%clk 0:00:04]} 42. f5 {[%clk 0:01:29]}  Re3 {[%clk 0:00:05]} 43. Qc4 {[%clk 0:01:29]}  d3 {[%clk 0:00:05]} 44. Qd5 {[%clk 0:01:28]}  Re2 {[%clk 0:00:05]} 45. f6 {[%clk 0:01:28]}  d2 {[%clk 0:00:03]} 46. f7 {[%clk 0:01:28]}  Rf2 {[%clk 0:00:03]} 47. Kb3 {[%clk 0:01:27]}  Be3 {[%clk 0:00:00]} 48. Qe6+ {[%clk 0:01:24]} 1-0


[Site "https://www.chess.com"]

[Event "Titled Tuesday Blitz August 15 Early 2023"]
[White "Johnson, Ben"]
[Black "Ovezdurdyyeva, Jemal"]
[WhiteFideId "2010917"]
[BlackFideId "14001888"]
[WhiteElo "2134"]
[BlackElo "2350"]
[Result "0-1"]
[Round "3"]
[TimeControl "180+1"]
[Date "2023.08.15"]
[WhiteClock "0:00:02"]
[BlackClock "0:00:08"]
[Board "227"]

1. Nf3 {[%clk 0:03:00]}  Nf6 {[%clk 0:02:59]} 2. c4 {[%clk 0:03:00]}  e6 {[%clk 0:02:58]} 3. e3 {[%clk 0:02:54]}  b6 {[%clk 0:02:52]} 4. b3 {[%clk 0:02:53]}  Bb7 {[%clk 0:02:52]} 5. Bb2 {[%clk 0:02:53]}  Be7 {[%clk 0:02:52]} 6. Nc3 {[%clk 0:02:49]}  O-O {[%clk 0:02:51]} 7. Qc2 {[%clk 0:02:44]}  c5 {[%clk 0:02:50]} 8. Be2 {[%clk 0:02:42]}  d5 {[%clk 0:02:50]} 9. cxd5 {[%clk 0:02:40]}  exd5 {[%clk 0:02:49]} 10. d4 {[%clk 0:02:39]}  Nc6 {[%clk 0:02:47]} 11. dxc5 {[%clk 0:02:17]}  bxc5 {[%clk 0:02:46]} 12. O-O {[%clk 0:02:15]}  d4 {[%clk 0:02:42]} 13. exd4 {[%clk 0:02:08]}  cxd4 {[%clk 0:02:42]} 14. Ne4 {[%clk 0:01:46]}  Nb4 {[%clk 0:01:38]} 15. Nxf6+ {[%clk 0:01:45]}  Bxf6 {[%clk 0:01:37]} 16. Qd2 {[%clk 0:01:32]}  Nc6 {[%clk 0:01:15]} 17. Rfd1 {[%clk 0:01:21]}  Qb6 {[%clk 0:01:12]} 18. Qf4 {[%clk 0:00:57]}  Rad8 {[%clk 0:01:08]} 19. g4 {[%clk 0:00:52]}  Rfe8 {[%clk 0:01:00]} 20. Rd2 {[%clk 0:00:48]}  h6 {[%clk 0:00:33]} 21. h4 {[%clk 0:00:47]}  Be5 {[%clk 0:00:21]} 22. Qf5 {[%clk 0:00:20]}  Bc8 {[%clk 0:00:19]} 23. Qh5 {[%clk 0:00:17]}  Qa5 {[%clk 0:00:12]} 24. Bd3 {[%clk 0:00:14]}  Nb4 {[%clk 0:00:04]} 25. Bf5 {[%clk 0:00:11]}  Bb7 {[%clk 0:00:03]} 26. Nxe5 {[%clk 0:00:10]}  Rxe5 {[%clk 0:00:02]} 27. Rad1 {[%clk 0:00:07]}  Qd5 {[%clk 0:00:02]} 28. f3 {[%clk 0:00:04]}  Qxf3 {[%clk 0:00:02]} 29. Bh7+ {[%clk 0:00:03]}  Kxh7 {[%clk 0:00:02]} 30. Qxe5 {[%clk 0:00:03]}  Qh1+ {[%clk 0:00:03]} 31. Kf2 {[%clk 0:00:02]}  Qg2+ {[%clk 0:00:03]} 32. Ke1 {[%clk 0:00:02]}  Qg1+ {[%clk 0:00:04]} 33. Ke2 {[%clk 0:00:02]}  Qg2+ {[%clk 0:00:04]} 34. Ke1 {[%clk 0:00:03]}  Qg1+ {[%clk 0:00:05]} 35. Ke2 {[%clk 0:00:03]}  Qxg4+ {[%clk 0:00:06]} 36. Ke1 {[%clk 0:00:04]}  Qg1+ {[%clk 0:00:06]} 37. Ke2 {[%clk 0:00:04]}  Qg6 {[%clk 0:00:07]} 38. Rf1 {[%clk 0:00:03]}  d3+ {[%clk 0:00:08]} 39. Kd1 {[%clk 0:00:03]}  Nc2 {[%clk 0:00:07]} 40. Qf5 {[%clk 0:00:04]}  Ne3+ {[%clk 0:00:07]} 41. Kc1 {[%clk 0:00:03]}  Nxf5 {[%clk 0:00:07]} 42. Rxf5 {[%clk 0:00:04]}  Qxf5 {[%clk 0:00:07]} 43. Rf2 {[%clk 0:00:04]}  Rc8+ {[%clk 0:00:08]} 44. Kb1 {[%clk 0:00:02]}  Qxf2 {[%clk 0:00:08]} 0-1


[Site "https://www.chess.com"]

[Event "Titled Tuesday Blitz August 15 Early 2023"]
[White "Novikova, Margarita"]
[Black "Silva, Pedro Gil Ferreira Da"]
[WhiteFideId "14109689"]
[BlackFideId "1946102"]
[WhiteElo "2121"]
[BlackElo "2350"]
[Result "1-0"]
[Round "3"]
[TimeControl "180+1"]
[Date "2023.08.15"]
[WhiteClock "0:00:15"]
[BlackClock "0:00:48"]
[Board "228"]

1. e4 {[%clk 0:02:39]}  c5 {[%clk 0:02:58]} 2. Nc3 {[%clk 0:02:21]}  e6 {[%clk 0:02:44]} 3. d3 {[%clk 0:02:20]}  Nc6 {[%clk 0:02:44]} 4. g3 {[%clk 0:02:19]}  g6 {[%clk 0:02:44]} 5. Be3 {[%clk 0:02:18]}  d6 {[%clk 0:02:43]} 6. Qd2 {[%clk 0:02:01]}  Bg7 {[%clk 0:02:42]} 7. Bg2 {[%clk 0:02:00]}  Nd4 {[%clk 0:02:42]} 8. Nd1 {[%clk 0:02:00]}  h6 {[%clk 0:02:27]} 9. c3 {[%clk 0:02:00]}  Nc6 {[%clk 0:02:27]} 10. h4 {[%clk 0:01:59]}  Nge7 {[%clk 0:02:28]} 11. Ne2 {[%clk 0:01:58]}  b5 {[%clk 0:02:25]} 12. O-O {[%clk 0:01:45]}  Bb7 {[%clk 0:02:18]} 13. d4 {[%clk 0:01:35]}  cxd4 {[%clk 0:02:17]} 14. cxd4 {[%clk 0:01:34]}  d5 {[%clk 0:02:17]} 15. f3 {[%clk 0:01:32]}  Qb6 {[%clk 0:02:11]} 16. Nf2 {[%clk 0:01:26]}  Rd8 {[%clk 0:02:12]} 17. Nf4 {[%clk 0:01:15]}  O-O {[%clk 0:02:07]} 18. Ne2 {[%clk 0:01:09]}  Kh7 {[%clk 0:02:05]} 19. a4 {[%clk 0:00:36]}  b4 {[%clk 0:02:03]} 20. b3 {[%clk 0:00:34]}  a5 {[%clk 0:02:02]} 21. Rac1 {[%clk 0:00:34]}  Rc8 {[%clk 0:02:01]} 22. g4 {[%clk 0:00:34]}  Rfd8 {[%clk 0:01:59]} 23. e5 {[%clk 0:00:34]}  Ba6 {[%clk 0:01:54]} 24. Nd3 {[%clk 0:00:33]}  Bxd3 {[%clk 0:01:40]} 25. Qxd3 {[%clk 0:00:34]}  Nb8 {[%clk 0:01:40]} 26. Rc5 {[%clk 0:00:30]}  Nd7 {[%clk 0:01:38]} 27. Rxc8 {[%clk 0:00:29]}  Rxc8 {[%clk 0:01:37]} 28. Rc1 {[%clk 0:00:29]}  Rxc1+ {[%clk 0:01:37]} 29. Nxc1 {[%clk 0:00:28]}  Nc6 {[%clk 0:01:34]} 30. Ne2 {[%clk 0:00:27]}  Bf8 {[%clk 0:01:32]} 31. h5 {[%clk 0:00:26]}  Kg7 {[%clk 0:01:30]} 32. hxg6 {[%clk 0:00:26]}  fxg6 {[%clk 0:01:31]} 33. f4 {[%clk 0:00:24]}  Ne7 {[%clk 0:01:27]} 34. Ng3 {[%clk 0:00:23]}  Qc6 {[%clk 0:01:24]} 35. f5 {[%clk 0:00:22]}  exf5 {[%clk 0:01:24]} 36. gxf5 {[%clk 0:00:23]}  gxf5 {[%clk 0:01:20]} 37. Nxf5+ {[%clk 0:00:24]}  Nxf5 {[%clk 0:01:20]} 38. Qxf5 {[%clk 0:00:24]}  Be7 {[%clk 0:01:16]} 39. e6 {[%clk 0:00:24]}  Nf6 {[%clk 0:01:13]} 40. Qh3 {[%clk 0:00:17]}  h5 {[%clk 0:01:10]} 41. Qg3+ {[%clk 0:00:17]}  Kh8 {[%clk 0:01:09]} 42. Qe5 {[%clk 0:00:16]}  Qc3 {[%clk 0:01:06]} 43. Bg5 {[%clk 0:00:16]}  Qa1+ {[%clk 0:00:48]} 44. Kh2 {[%clk 0:00:15]} 1-0


[Site "https://www.chess.com"]